bitfinex-derivatives/quotes_SOLF0:USTF0_20251126
["timestamp","ask_amount","ask_price","bid_price","bid_amount"]
[1764186490728,2.9443169,144.27,144.24,0.04949558]
[1764186490914,2.9443169,144.27,144.24,6.29059558]
[1764186491626,0.0443169,144.27,144.24,0.04949558]
[1764186492035,0.0443169,144.27,144.25,6.2406]
[1764186494427,2.8843169,144.27,144.24,0.04949558]
[1764186494627,2.84,144.26,144.14,119.1474]
[1764186494833,2.84,144.24,144.15,97.1457]
[1764186495132,2.84,144.24,144.16,97.1403]
[1764186495434,2.84,144.24,144.17,97.1336]
[1764186495727,0.04883048,144.21,144.19,0.04753821]
[1764186496432,0.04883048,144.21,144.19,6.29083821]
[1764186498228,0.04883048,144.21,144.19,0.04753821]
[1764186498430,2.88883048,144.21,144.19,0.04753821]
[1764186508738,2.88883048,144.21,144.19,6.29083821]
[1764186510540,2.88883048,144.21,144.19,0.04753821]
[1764186512238,2.84,144.2,144.16,6.2443]
[1764186512538,2.84,144.2,144.13,97.1576]
[1764186513043,2.84,144.2,144.17,6.2442]
[1764186513242,2.89236962,144.2,144.17,6.29385173]
[1764186515044,0.05236962,144.2,144.18,6.2438]
[1764186517844,0.05236962,144.2,144.19,6.2434]
[1764186521743,6.41474832,144.24,144.23,6.2417]
[1764186521942,6.41474832,144.25,144.23,6.2417]
[1764186522138,6.41474832,144.25,144.2,97.113]
[1764186522335,9.47474832,144.25,144.2,97.113]
[1764186522739,0.04452792,144.24,144.21,0.04778093]
[1764186523748,3.06,144.23,144.22,6.2421]
[1764186525652,9.47474832,144.23,144.21,0.04778093]
[1764186526043,9.47474832,144.23,144.21,6.29028093]
[1764186526342,3.06,144.22,144.21,6.29028093]
[1764186527248,9.47474832,144.22,144.21,6.29028093]
[1764186527451,9.47474832,144.22,144.21,0.04778093]
[1764186528758,11.6466656,144.22,144.21,0.04778093]
[1764186529256,3.06,144.19,144.15,6.2448]
[1764186529457,6.43436318,144.18,144.12,97.1662]
[1764186529859,6.43436318,144.18,144.16,6.2447]
[1764186530052,9.54084918,144.18,144.16,6.2958976]
[1764186530448,3.06,144.16,144.08,97.1877]
[1764186530750,6.43662204,144.14,144.09,97.1872]
[1764186531151,6.43662204,144.14,144.12,6.2463]
[1764186531352,11.6391509,144.16,144.1,97.1808]
[1764186531353,6.43662204,144.15,144.1,97.1808]
[1764186531556,0.04492153,144.14,144.11,0.04466098]
[1764186532655,0.04492153,144.14,144.13,6.2457]
[1764186538556,0.04492153,144.14,144.11,6.29116098]
[1764186538762,0.04492153,144.14,144.11,0.04466098]
[1764186538763,3.10492153,144.14,144.11,0.04466098]
[1764186539266,9.49662204,144.13,144.11,0.04466098]
[1764186539467,3.06,144.12,144.11,0.04466098]
[1764186539763,9.49662204,144.12,144.11,0.04466098]
[1764186540361,3.06,144.11,144.03,4.20549792]
[1764186540560,3.06,144.09,144.02,4.20549792]
[1764186540762,9.48626661,144.09,144.02,4.20549792]
[1764186540958,9.48626661,144.09,144.03,6.25]
[1764186541163,3.06,144.07,143.99,23.78]
[1764186541471,0.05109134,144.04,144.02,0.04858659]
[1764186543164,0.05109134,144.04,144.02,6.29918659]
[1764186544762,0.05109134,144.04,144.02,0.04858659]
[1764186545172,0.05109134,144.04,144.02,6.29928659]
[1764186545960,3.06,144.0,143.87,6.44180397]
[1764186546170,23.8,144.03,143.96,2.69951173]
[1764186546171,3.06,144.03,143.96,2.69951173]
[1764186546363,2.92,144.05,143.98,8.95181173]
[1764186547068,0.04689044,144.03,144.0,0.05150077]
[1764186549288,0.04689044,144.03,144.0,6.30290077]
[1764186549870,0.04689044,144.03,144.01,6.2509]
[1764186552077,9.53626661,144.1,144.03,6.2501]
[1764186552078,3.11,144.1,144.03,6.2501]
[1764186553075,3.15480961,144.08,144.05,0.04814952]
[1764186554481,3.11,144.06,144.05,0.04814952]
[1764186567986,3.11,144.06,144.02,6.2504]
[1764186568191,6.29310961,144.08,144.0,23.92]
[1764186568192,3.11,144.04,144.0,23.92]
[1764186568887,3.11,144.04,144.02,6.2507]
[1764186569087,3.15928727,144.04,144.02,6.29735605]
[1764186570995,0.04928727,144.04,144.02,6.29735605]
[1764186571594,3.15928727,144.04,144.02,6.29735605]
[1764186572502,0.04928727,144.04,144.02,6.29735605]
[1764186573407,3.15928727,144.04,144.02,6.29735605]
[1764186573607,0.04928727,144.04,144.02,30.21735605]
[1764186576408,0.04928727,144.04,144.02,6.29735605]
[1764186576607,0.04928727,144.04,144.03,23.9]
[1764186577206,0.04928727,144.04,144.03,30.1503]
[1764186577604,0.04928727,144.04,144.03,6.2503]
[1764186577907,0.04928727,144.04,144.03,30.1503]
[1764186579098,0.04928727,144.04,144.03,6.2503]
[1764186579610,0.04928727,144.04,144.03,30.1503]
[1764186584413,6.47555388,144.04,144.03,30.1503]
[1764186586916,9.57555388,144.04,144.03,30.1303]
[1764186587808,6.47555388,144.04,144.03,30.1303]
[1764186588412,0.04928727,144.04,144.03,30.1303]
[1764186589317,3.14928727,144.04,144.03,23.88]
[1764186589913,3.14928727,144.04,144.03,30.1303]
[1764186590310,11.72843817,144.04,144.03,23.88]
[1764186590711,3.14928727,144.04,144.03,23.88]
[1764186591013,3.1,144.03,144.02,23.92665605]
[1764186591320,11.73269417,144.03,144.02,23.92665605]
[1764186592818,11.73269417,144.03,144.02,0.04665605]
[1764186593021,3.1,144.03,144.02,0.04665605]
[1764186593418,15.9799984,144.03,144.02,0.04665605]
[1764186594312,3.1,144.03,144.02,0.04665605]
[1764186595015,11.72737793,144.03,144.02,0.04665605]
[1764186595211,8.62737793,144.03,144.02,0.04665605]
[1764186595417,11.72737793,144.03,144.02,0.04665605]
[1764186603531,3.1,144.02,143.99,6.2517]
[1764186603733,3.1,144.0,143.99,6.2517]
[1764186604334,6.46686239,144.0,143.99,6.2517]
[1764186604531,6.51778991,144.01,143.99,6.2517]
[1764186605439,0.05092752,144.01,143.99,7.6317]
[1764186605624,8.62408706,144.05,144.03,6.2503]
[1764186605831,8.62408706,144.05,144.03,30.1103]
[1764186606631,0.0523057,144.05,144.03,30.15544847]
[1764186606933,12.9361306,144.08,144.07,6.2486]
[1764186607141,7.18453,144.12,144.08,97.1938]
[1764186607338,2.84,144.17,144.1,97.1783]
[1764186607534,2.84,144.17,144.11,23.88]
[1764186607837,2.84,144.17,144.12,6.2461]
[1764186608038,0.05315433,144.16,144.13,0.04477545]
[1764186608432,2.89315433,144.16,144.13,0.04477545]
[1764186608840,0.05315433,144.16,144.13,0.04477545]
[1764186609444,0.05315433,144.16,144.14,23.86]
[1764186609938,0.05315433,144.16,144.14,30.1053]
[1764186610742,0.05315433,144.16,144.15,23.86]
[1764186612144,2.97315433,144.16,144.15,23.86]
[1764186612541,2.97315433,144.16,144.13,23.90477545]
[1764186612845,2.97315433,144.16,144.13,0.04477545]
[1764186618848,0.05315433,144.16,144.13,0.04477545]
[1764186619243,0.05315433,144.16,144.14,6.2454]
[1764186620851,0.05315433,144.16,144.14,30.1054]
[1764186621252,0.05315433,144.16,144.13,0.04477545]
[1764186621444,0.05315433,144.16,144.13,121.06247545]
[1764186622151,20.98812356,144.21,144.14,97.1504]
[1764186622343,7.13931412,144.22,144.14,97.1504]
[1764186622544,2.92,144.21,144.14,97.1504]
[1764186622743,2.92,144.21,144.15,23.86]
[1764186623147,0.04903107,144.19,144.17,0.05238395]
[1764186623648,0.04903107,144.19,144.17,6.29638395]
[1764186625354,2.96903107,144.19,144.17,6.29638395]
[1764186625951,0.04903107,144.19,144.17,6.29638395]
[1764186627852,2.92,144.18,144.17,6.29638395]
[1764186628150,0.04903107,144.19,144.17,6.29638395]
[1764186629355,2.96903107,144.19,144.17,6.29638395]
[1764186630255,0.04903107,144.19,144.17,6.29638395]
[1764186634156,2.96903107,144.19,144.17,6.29638395]
[1764186635352,0.04903107,144.19,144.17,6.29638395]
[1764186635560,2.96903107,144.19,144.17,6.29638395]
[1764186636061,0.04903107,144.19,144.17,6.29638395]
[1764186639056,2.92,144.25,144.22,6.242]
[1764186640063,2.96420124,144.25,144.22,6.28587398]
[1764186640259,2.96420124,144.25,144.23,6.2416]
[1764186640463,0.04420124,144.25,144.23,6.2416]
[1764186641867,2.99420124,144.25,144.23,6.2416]
[1764186643264,0.04420124,144.25,144.23,6.2416]
[1764186644970,0.04420124,144.25,144.24,23.82]
[1764186646065,30.98931412,144.33,144.25,97.0789]
[1764186646670,2.95,144.32,144.29,6.239]
[1764186646869,2.95,144.31,144.29,0.04491014]
[1764186648568,2.95,144.31,144.29,6.28391014]
[1764186649872,0.04682411,144.32,144.3,6.2386]
[1764186651369,0.04682411,144.32,144.31,23.8]
[1764186651670,0.04682411,144.32,144.29,0.04491014]
[1764186651872,2.95,144.31,144.29,0.04491014]
[1764186652271,2.99682411,144.32,144.29,0.04491014]
[1764186659083,2.99682411,144.32,144.29,6.28391014]
[1764186659678,2.99682411,144.32,144.29,0.04491014]
[1764186660176,0.04682411,144.32,144.29,0.04491014]
[1764186660775,0.04682411,144.32,144.3,6.2386]
[1764186660985,2.95,144.38,144.31,23.8]
[1764186661170,2.95,144.38,144.32,97.0319]
[1764186661567,2.95,144.38,144.31,120.8341]
[1764186661768,2.95,144.38,144.33,6.237]
[1764186661978,0.04843761,144.37,144.34,0.05067586]
[1764186662175,2.99843761,144.37,144.34,0.05067586]
[1764186662374,2.99843761,144.37,144.34,6.28747586]
[1764186666484,2.99843761,144.37,144.35,6.2364]
[1764186671678,2.99843761,144.37,144.34,0.05067586]
[1764186672379,2.99843761,144.37,144.35,6.2364]
[1764186675380,2.97,144.35,144.34,0.05067586]
[1764186676778,0.04843761,144.37,144.34,23.83067586]
[1764186677380,0.04843761,144.37,144.35,6.2364]
[1764186679281,2.97,144.46,144.42,6.2335]
[1764186679485,2.97,144.45,144.39,120.7643]
[1764186680185,23.73699411,144.46,144.43,6.2329]
[1764186680495,2.97,144.45,144.41,0.04712789]
[1764186681006,23.78420533,144.46,144.44,6.2324]
[1764186681510,0.04721122,144.46,144.44,6.2324]
[1764186682506,3.01721122,144.46,144.42,6.2332]
[1764186682705,3.01721122,144.46,144.42,30.0132]
[1764186683010,3.01721122,144.46,144.43,6.2329]
[1764186683210,3.01721122,144.46,144.41,23.82712789]
[1764186683512,3.01721122,144.46,144.43,96.9588]
[1764186683513,0.04721122,144.46,144.43,96.9588]
[1764186683692,0.04721122,144.46,144.44,6.2324]
[1764186685402,0.04721122,144.46,144.45,23.78]
[1764186688100,3.01721122,144.46,144.44,0.04522955]
[1764186688505,2.97,144.45,144.44,0.04522955]
[1764186690309,0.04721122,144.46,144.44,0.04522955]
[1764186691112,0.04721122,144.46,144.44,6.27762955]
[1764186692912,0.04721122,144.46,144.44,30.05762955]
[1764186693613,2.97,144.52,144.49,6.23]
[1764186694610,23.29800804,144.52,144.49,6.27727599]
[1764186696202,20.32800804,144.52,144.49,6.27727599]
[1764186696406,20.32800804,144.52,144.5,6.2299]
[1764186697006,3.01707807,144.52,144.5,6.2299]
[1764186697209,5.7064882,144.52,144.49,0.04727599]
[1764186697410,2.97,144.49,144.44,23.78]
[1764186697813,2.97,144.49,144.45,6.232]
[1764186698311,2.97,144.47,144.46,0.04850792]
[1764186707719,2.97,144.47,144.42,6.2331]
[1764186708220,2.97,144.47,144.41,6.2338]
[1764186708221,3.0,144.46,144.41,6.2338]
[1764186708623,3.0,144.46,144.42,6.27735208]
[1764186708926,3.0,144.44,144.42,6.27735208]
[1764186710724,3.0,144.44,144.42,0.04395208]
[1764186712426,0.04919156,144.45,144.42,6.27725208]
[1764186713733,3.04919156,144.45,144.42,6.27725208]
[1764186714341,0.04919156,144.45,144.43,6.2329]
[1764186714531,3.04919156,144.45,144.43,6.2329]
[1764186715932,3.04919156,144.45,144.42,0.04395208]
[1764186718432,3.04919156,144.45,144.42,6.27735208]
[1764186719236,0.04919156,144.45,144.43,6.233]
[1764186719723,3.0,144.44,144.42,0.04395208]
[1764186720420,3.0,144.44,144.42,6.27735208]
[1764186723133,6.45980427,144.45,144.42,0.04395208]
[1764186723526,9.45980427,144.45,144.42,0.04395208]
[1764186723722,3.0,144.42,144.32,9.0913657]
[1764186723928,9.41061271,144.4,144.33,23.78]
[1764186724323,9.41061271,144.4,144.37,6.2356]
[1764186724533,3.0,144.39,144.37,6.2356]
[1764186724730,6.41061271,144.4,144.34,97.0164]
[1764186724936,0.05074054,144.38,144.36,0.04872822]
[1764186725133,0.05074054,144.38,144.37,6.2356]
[1764186725831,6.41061271,144.45,144.38,96.9914]
[1764186726030,6.41061271,144.46,144.4,96.9789]
[1764186726639,9.41061271,144.46,144.44,6.2325]
[1764186726836,6.46327555,144.46,144.44,6.28454164]
[1764186727738,0.05266284,144.46,144.44,6.28454164]
[1764186727939,6.46327555,144.46,144.44,6.28454164]
[1764186728340,0.05266284,144.46,144.44,6.28454164]
[1764186729839,2.90266284,144.46,144.44,6.28454164]
[1764186731036,0.05266284,144.46,144.44,6.28454164]
[1764186731944,2.94266284,144.46,144.44,6.28454164]
[1764186732447,2.94266284,144.46,144.44,0.05204164]
[1764186732747,2.89,144.45,144.44,0.05204164]
[1764186732940,2.89,144.44,144.37,45.78]
[1764186733135,2.89,144.44,144.41,6.2338]
[1764186733541,6.41061271,144.45,144.38,96.9887]
[1764186733837,0.04382146,144.43,144.4,0.04795708]
[1764186734643,0.04382146,144.43,144.42,6.2334]
[1764186736445,0.04382146,144.43,144.4,6.28195708]
[1764186736850,2.93382146,144.43,144.4,6.28195708]
[1764186737450,2.93382146,144.43,144.41,6.2338]
[1764186737746,0.04382146,144.43,144.41,6.2338]
[1764186738748,2.93382146,144.43,144.41,6.2338]
[1764186738936,2.89,144.41,144.32,97.0318]
[1764186739140,101.14488868,144.45,144.31,120.7992]
[1764186739141,6.46372962,144.38,144.31,120.7992]
[1764186739342,6.46372962,144.38,144.35,6.2364]
[1764186739649,9.35372962,144.37,144.31,23.76]
[1764186739840,0.04578348,144.35,144.33,0.04660224]
[1764186740340,0.04578348,144.35,144.33,6.28380224]
[1764186741458,2.93578348,144.35,144.33,0.04660224]
[1764186741746,0.04578348,144.35,144.33,0.04660224]
[1764186742645,2.93578348,144.35,144.33,0.04660224]
[1764186743753,2.93578348,144.35,144.33,6.28390224]
[1764186743951,0.04578348,144.35,144.33,6.28390224]
[1764186744253,2.89,144.33,144.25,97.0796]
[1764186745039,0.05204447,144.3,144.28,0.04910659]
[1764186745456,0.05204447,144.3,144.28,6.28840659]
[1764186750257,23.21975406,144.35,144.3,6.2383]
[1764186750459,2.89,144.35,144.31,23.82]
[1764186751249,0.05260376,144.34,144.32,0.04537743]
[1764186752349,2.94260376,144.34,144.32,0.04537743]
[1764186755956,2.89,144.33,144.24,22.0]
[1764186756157,2.89,144.33,144.24,23.82]
[1764186756356,2.89,144.31,144.25,6.2405]
[1764186756547,6.2379,144.32,144.2,97.1134]
[1764186756548,2.89,144.3,144.2,97.1134]
[1764186756857,0.04919351,144.26,144.24,0.05040862]
[1764186757058,0.04791408,144.26,144.24,0.05040862]
[1764186757262,2.89,144.34,144.27,97.0661]
[1764186757656,2.89,144.34,144.28,23.84]
[1764186758258,2.93733,144.32,144.3,0.04637806]
[1764186758650,2.93733,144.32,144.3,6.28487806]
[1764186759659,2.93733,144.32,144.3,0.04637806]
[1764186766365,2.93733,144.32,144.3,6.28477806]
[1764186769152,2.93733,144.32,144.3,0.04637806]
[1764186782181,9.40105962,144.32,144.3,0.04637806]
[1764186782379,2.85,144.31,144.3,0.04637806]
[1764186783271,9.31372962,144.31,144.3,0.04637806]
[1764186784977,6.51105962,144.32,144.31,6.2382]
[1764186785178,0.04733,144.32,144.31,6.2382]
[1764186785370,6.46372962,144.35,144.3,97.08777806]
[1764186785579,6.46372962,144.36,144.31,97.038]
[1764186785885,6.46372962,144.36,144.32,23.82]
[1764186786072,6.46372962,144.36,144.34,6.2369]
[1764186786385,9.31372962,144.37,144.32,23.82]
[1764186786688,0.0444657,144.35,144.33,0.05092151]
[1764186786874,0.04959638,144.35,144.33,0.04487485]
[1764186787278,3.06959638,144.35,144.33,0.04487485]
[1764186787480,11.63830617,144.34,144.33,0.04487485]
[1764186788184,3.02,144.33,144.28,23.8]
[1764186788480,9.49546658,144.31,144.28,23.8]
[1764186788784,9.49546658,144.31,144.29,6.239]
[1764186789083,9.54682442,144.31,144.29,6.28547383]
[1764186789275,6.47546658,144.3,144.29,6.28547383]
[1764186794485,9.54682442,144.31,144.29,6.28547383]
[1764186799687,9.54682442,144.31,144.29,0.04647383]
[1764186799688,9.39546658,144.3,144.29,0.04647383]
[1764186799889,2.92,144.29,144.19,22.0]
[1764186800087,2.92,144.24,144.2,23.82]
[1764186800293,9.40247902,144.25,144.22,6.242]
[1764186800481,2.92,144.24,144.22,6.242]
[1764186800879,9.4507721,144.24,144.22,6.28604112]
[1764186801382,2.96829308,144.24,144.22,6.28604112]
[1764186801584,9.4507721,144.24,144.22,30.10604112]
[1764186801785,2.96829308,144.24,144.22,30.10604112]
[1764186802088,2.92,144.23,144.22,0.04404112]
[1764186805498,2.92,144.22,144.14,97.1536]
[1764186805793,9.3881085,144.21,144.14,119.1536]
[1764186805990,2.92,144.2,144.15,23.82]
[1764186806182,2.92,144.2,144.15,6.2448]
[1764186806388,2.92,144.2,144.16,23.82]
[1764186806589,2.96963854,144.19,144.17,0.04616153]
[1764186811093,0.04963854,144.19,144.17,0.04616153]
[1764186811300,0.04963854,144.19,144.17,6.29036153]
[1764186816796,2.92,144.24,144.22,6.2419]
[1764186817801,2.96482005,144.24,144.22,0.04421381]
[1764186818098,5.61119605,144.23,144.22,0.04421381]
[1764186819703,2.92,144.23,144.22,0.04421381]
[1764186820098,2.92,144.23,144.15,112.32349605]
[1764186820099,2.92,144.23,144.18,6.2434]
[1764186820298,2.92,144.22,144.18,6.2434]
[1764186820499,2.92,144.2,144.18,6.2434]
[1764186821307,2.96682164,144.2,144.18,6.29585853]
[1764186821918,2.96682164,144.2,144.18,0.05245853]
[1764186822299,2.83,144.18,144.1,119.1743]
[1764186822511,2.83,144.18,144.14,6.2455]
[1764186823411,2.69119605,144.19,144.15,0.0511925]
[1764186823412,2.83,144.16,144.15,0.0511925]
[1764186823713,2.88010196,144.17,144.15,6.2961925]
[1764186825201,2.88010196,144.17,144.15,30.1161925]
[1764186828514,0.05010196,144.17,144.15,30.1161925]
[1764186831912,2.88010196,144.17,144.15,30.1161925]
[1764186832111,0.05010196,144.17,144.15,30.1161925]
[1764186840115,0.05010196,144.17,144.16,6.2447]
[1764186840823,2.83,144.16,144.12,6.2463]
[1764186841020,2.83,144.15,144.12,6.2463]
[1764186841322,0.05010196,144.17,144.13,23.82]
[1764186841520,0.05010196,144.17,144.13,120.9777]
[1764186841827,0.05010196,144.17,144.14,97.19788343]
[1764186842116,0.05010196,144.17,144.16,6.2447]
[1764186843315,6.4681085,144.21,144.19,6.2434]
[1764186843618,6.4681085,144.22,144.2,23.82]
[1764186843821,6.4681085,144.23,144.2,23.82]
[1764186844225,6.4681085,144.22,144.21,6.2425]
[1764186844530,6.51217532,144.24,144.2,23.82]
[1764186844715,6.51217532,144.24,144.22,6.242]
[1764186845526,9.2981085,144.23,144.2,30.11130916]
[1764186846124,9.2981085,144.23,144.21,6.2425]
[1764186846324,6.4681085,144.23,144.21,6.2425]
[1764186846625,9.48217532,144.24,144.21,6.2425]
[1764186847124,9.48217532,144.24,144.22,23.82]
[1764186847311,9.48217532,144.24,144.22,30.062]
[1764186848222,6.4681085,144.23,144.22,30.062]
[1764186848428,9.48217532,144.24,144.22,30.062]
[1764186849328,6.51217532,144.24,144.22,30.062]
[1764186849522,9.48217532,144.24,144.22,30.062]
[1764186850026,6.51217532,144.24,144.22,30.062]
[1764186850824,9.48217532,144.24,144.22,30.062]
[1764186853928,3.01406682,144.24,144.22,30.062]
[1764186855321,9.48217532,144.24,144.22,30.062]
[1764186857128,3.01406682,144.24,144.22,30.062]
[1764186860832,0.04406682,144.24,144.22,30.062]
[1764186864033,0.04406682,144.24,144.22,23.82]
[1764186864034,3.04406682,144.24,144.22,23.82]
[1764186864236,3.0,144.23,144.22,23.82]
[1764186864829,6.51217532,144.24,144.22,23.82]
[1764186865029,9.51217532,144.24,144.22,23.82]
[1764186866240,9.51217532,144.24,144.22,30.0621]
[1764186867040,3.04406682,144.24,144.22,30.0621]
[1764186868029,3.04406682,144.24,144.22,6.2421]
[1764186868728,3.0,144.23,144.21,23.8]
[1764186869836,3.0,144.23,144.21,30.0425]
[1764186870334,9.51217532,144.24,144.21,30.0425]
[1764186875137,9.51217532,144.24,144.2,0.04870916]
[1764186875138,3.0,144.23,144.2,23.84870916]
[1764186875540,3.0,144.22,144.2,23.84870916]
[1764186876339,3.0,144.22,144.21,6.2425]
[1764186877140,6.4681085,144.23,144.22,6.2421]
[1764186877447,6.51217532,144.24,144.22,6.2421]
[1764186878547,9.51217532,144.24,144.22,6.2421]
[1764186878745,6.4681085,144.23,144.2,23.84870916]
[1764186879049,9.51217532,144.24,144.2,23.84870916]
[1764186879236,6.4681085,144.23,144.2,23.84870916]
[1764186880644,6.4681085,144.23,144.22,6.2421]
[1764186882247,11.66737218,144.24,144.22,6.2421]
[1764186886359,8.64330536,144.23,144.22,6.2421]
[1764186887960,11.62330536,144.23,144.22,6.2421]
[1764186888957,8.64330536,144.23,144.18,119.1227]
[1764186889158,2.98,144.17,144.07,23.86]
[1764186889356,6.4793439,144.15,144.07,23.86]
[1764186889563,6.4793439,144.15,144.13,6.2457]
[1764186889763,6.4793439,144.17,144.14,23.86]
[1764186889958,6.4793439,144.16,144.14,23.90645505]
[1764186890364,9.4593439,144.16,144.14,30.15175505]
[1764186890558,6.4793439,144.16,144.14,30.15175505]
[1764186890959,9.50327365,144.17,144.14,30.15175505]
[1764186891467,6.4793439,144.16,144.14,30.15175505]
[1764186892459,6.4793439,144.16,144.14,23.90645505]
[1764186893268,9.4593439,144.16,144.14,23.90645505]
[1764186893862,9.50327365,144.17,144.14,23.90645505]
[1764186897063,9.50327365,144.17,144.15,23.86]
[1764186897264,2.98,144.16,144.15,23.86]
[1764186897964,9.50327365,144.17,144.14,0.04645505]
[1764186898259,2.98,144.16,144.15,23.86]
[1764186899170,2.98,144.15,144.14,0.04645505]
[1764186899364,9.4593439,144.15,144.14,23.90645505]
[1764186900068,9.4593439,144.15,144.14,0.04645505]
[1764186900472,9.4593439,144.15,144.14,23.90645505]
[1764186900672,2.98,144.15,144.14,0.04645505]
[1764186900860,2.98,144.15,144.14,23.90645505]
[1764186901270,9.42739181,144.15,144.14,23.90645505]
[1764186901770,2.98,144.14,144.04,97.2202]
[1764186901974,2.98,144.12,144.06,23.86]
[1764186902165,4.20835376,144.13,144.06,23.86]
[1764186902366,7.18835376,144.13,144.09,6.2476]
[1764186902980,7.18835376,144.13,144.06,121.0642]
[1764186902981,0.04582879,144.12,144.1,6.29877599]
[1764186903167,0.04582879,144.12,144.11,23.86]
[1764186912882,2.88582879,144.12,144.11,23.84]
[1764186913082,0.04582879,144.12,144.11,23.84]
[1764186914484,0.04582879,144.12,144.1,6.29877599]
[1764186914684,0.04582879,144.12,144.11,23.86]
[1764186915987,0.04582879,144.12,144.11,30.1069]
[1764186918182,2.88582879,144.12,144.11,23.84]
[1764186918687,2.88582879,144.12,144.1,0.05157599]
[1764186918986,5.5377789,144.11,144.1,0.05157599]
[1764186919186,5.5377789,144.11,144.1,23.91157599]
[1764186920382,5.5377789,144.11,144.1,6.29887599]
[1764186920701,5.5377789,144.11,144.1,23.91157599]
[1764186921287,5.5377789,144.11,144.1,30.15887599]
[1764186924689,2.84,144.11,144.1,30.13887599]
[1764186924887,5.5377789,144.11,144.1,0.05157599]
[1764186925087,5.5377789,144.11,144.1,23.89157599]
[1764186925391,11.9790638,144.11,144.1,23.89157599]
[1764186928199,11.9790638,144.11,144.1,0.05157599]
[1764186928386,11.97605266,144.11,144.1,23.89157599]
[1764186929995,6.48410255,144.12,144.1,23.89157599]
[1764186931483,6.48410255,144.12,144.11,6.2469]
[1764186931690,0.04582879,144.12,144.11,6.2469]
[1764186934095,0.82950166,144.13,144.11,6.2469]
[1764186934295,8.6391252,144.17,144.11,97.1711]
[1764186934596,11.3369041,144.18,144.12,97.1668]
[1764186935095,11.3369041,144.18,144.14,0.05228212]
[1764186935300,0.05193151,144.16,144.15,30.085]
[1764186940789,8.6391252,144.2,144.18,6.2435]
[1764186941003,8.6391252,144.2,144.19,23.84]
[1764186941199,11.3369041,144.21,144.19,23.84]
[1764186941405,14.4069041,144.21,144.19,23.84]
[1764186941706,3.07,144.2,144.19,23.84]
[1764186942306,34.88391215,144.21,144.19,30.0833]
[1764186943217,0.05262695,144.21,144.19,30.0833]
[1764186944808,14.4069041,144.25,144.19,120.9544]
[1764186945709,14.4069041,144.25,144.23,6.2414]
[1764186945906,14.4069041,144.25,144.24,23.82]
[1764186946112,5.81584916,144.25,144.24,23.82]
[1764186946611,26.13266024,144.25,144.24,23.82]
[1764186949104,23.06266024,144.25,144.24,23.82]
[1764186950000,0.04807026,144.25,144.24,23.82]
[1764186950516,2.6977789,144.29,144.25,97.0776]
[1764186951015,5.7677789,144.31,144.26,97.0717]
[1764186951410,5.7677789,144.31,144.27,0.04512486]
[1764186951707,0.04565484,144.3,144.29,6.2389]
[1764186951913,20.79753324,144.32,144.28,23.86733986]
[1764186951914,0.05154652,144.31,144.28,23.86733986]
[1764186952309,5.81932542,144.31,144.28,0.04733986]
[1764186952501,5.81932542,144.31,144.29,30.0591]
[1764186953215,2.74932542,144.31,144.29,30.0591]
[1764186954612,3.07,144.3,144.2,20.81]
[1764186954812,21.10661339,144.32,144.21,23.82]
[1764186954813,2.6977789,144.25,144.21,23.82]
[1764186955316,2.6977789,144.28,144.23,97.09]
[1764186955812,0.04482395,144.27,144.24,0.04370499]
[1764186956014,0.04482395,144.27,144.25,23.84]
[1764186956812,0.04482395,144.27,144.26,6.2401]
[1764186959915,3.11482395,144.27,144.26,6.2401]
[1764186960309,0.04482395,144.27,144.26,6.2401]
[1764186961113,3.11482395,144.27,144.26,23.82]
[1764186961411,3.11482395,144.27,144.24,0.04370499]
[1764186961611,2.6977789,144.25,144.24,0.04370499]
[1764186961813,5.7677789,144.25,144.24,23.86370499]
[1764186963518,2.6977789,144.25,144.24,23.86370499]
[1764186964014,5.7677789,144.25,144.24,23.86370499]
[1764186965013,2.6977789,144.25,144.24,23.86370499]
[1764186965812,5.7677789,144.25,144.24,23.86370499]
[1764186966018,2.6977789,144.25,144.24,23.86370499]
[1764186968813,0.04482395,144.27,144.24,30.10470499]
[1764186969015,0.04482395,144.27,144.24,23.86370499]
[1764186969619,0.04482395,144.27,144.25,6.2406]